Workbook

Sheet Výpočetní program
B2: PROGRAM PRO STANOVENÍ STŘEDNÍ AERODYNAMICKÉ TĚTIVY KŘÍDLA OBECNÉHO PŮDORYSU
C5: Definujte typ křídla | F5: lichoběžník | H5: Zadejte půdorysný tvar vašeho křídla. V případě složeného křídla z více částí program předpokládá, že se "typ křídla" (jeho geometrické řazení) nemění. Předpokládá se pravoúhlý trojúhelník = delta křídlo)
H6: Možné vstupy: obdélník, lichoběžník, trojúhelník, elipsa
C8: Zadejte počet částí křídla P | F8: 1 | H8: Křídlo je buď jednoduché (neměnná geom.) nebo složené (proměnná geom.). Složené křídlo je nutné rozdělit na více jednoduchých subkřídel v místech, kde se geometrie mění viz. obrázek.
H9: Možné vstupy (počet subkřídel): 1, 2, 3 ,4
C11: Zadejte parametry křídla :
C13: Rozpětí 𝑙 | F13: 600 | H13: Změňte hodnotu 0 na vaši hodnotu.
C15: Hloubka u kořene křídla 𝑏0 | F15: 100 | H15: Změňte hodnotu 0 na vaši hodnotu.
C16: Hloubka subkřídla 𝑏1 | F16: 50 | H16: Změňte hodnotu 0 na vaši hodnotu. | K16: (zajedte 1E-30)
C17: Hloubka subkřídla 𝑏2 | F17: 0 | H17: Změňte hodnotu 0 na vaši hodnotu.
C18: Hloubka subkřídla 𝑏3 | F18: 0 | H18: Změňte hodnotu 0 na vaši hodnotu.
C19: Hloubka subkřídla 𝑏4 | F19: 0 | H19: Změňte hodnotu 0 na vaši hodnotu.
C21: Šípovitost -> vzdálenost nb1 | F21: 25 | H21: Změňte hodnotu 0 na vaši hodnotu. | K21: (je rovna b0)
C22: Šípovitost -> vzdálenost nb2 | F22: 0 | H22: Změňte hodnotu 0 na vaši hodnotu.
C23: Šípovitost -> vzdálenost nb3 | F23: 0 | H23: Změňte hodnotu 0 na vaši hodnotu.
C24: Šípovitost -> vzdálenost nb4 | F24: 0 | H24: Změňte hodnotu 0 na vaši hodnotu.
C26: Šípovitost -> vzdálenost zb1 | F26: 300 | H26: Změňte hodnotu 0 na vaši hodnotu. | K26: (je rovna l/2)
C27: Šípovitost -> vzdálenost zb2 | F27: 0 | H27: Změňte hodnotu 0 na vaši hodnotu.
C28: Šípovitost -> vzdálenost zb3 | F28: 0 | H28: Změňte hodnotu 0 na vaši hodnotu.
C29: Šípovitost -> vzdálenost zb4 | F29: 0 | H29: Změňte hodnotu 0 na vaši hodnotu.
C31: Vypočtená hodnota ploch subkřídel :
C33: Plocha křídla S1 | F33: =O42 -> 22500 | H33: Plocha křídla a plochy jeho částí pro kontrolu. viz. obrázek.
C34: Plocha křídla S2 | F34: =O43 -> 0
C35: Plocha křídla S3 | F35: =O44 -> 0
C36: Plocha křídla S4 | F36: =O45 -> 0
C37: Plocha křídla S (celková) | F37: =_xlfn.IFS(F5="elipsa",PI()/4*F15*F13,SUM(F33:F36),SUM(F33:F36)) -> 22500
C39: VÝSLEDNÉ HODNOTY DEFINUJÍCÍ STŘEDNÍ AERODYNAMICKOU TĚTIVU
C41: Střední aerodynamická hloubka | F41: =_xlfn.IFS(F5="elipsa",8/(3*PI())*F15,(J42*F33+J43*F34+J44*F35+J45*F36)/(F33+F34+F35+F36),(J42*F33+J43*F34+J44*F35+J45*F36)/(F33+F34+F35+F36)) -> 77.77777778 | H41: Pole | I41: zúžení^-1 | J41: bSAT | K41: zSAT | L41: xSAT | M41: zSAT gl. | N41: xSAT gl. | O41: Plocha
C42: Poloha SAT na rozpětí | F42: =_xlfn.IFS(F5="elipsa",0.4244*F13/2,(M42*F33+M43*F34+M44*F35+M45*F36)/(F33+F34+F35+F36),(M42*F33+M43*F34+M44*F35+M45*F36)/(F33+F34+F35+F36)) -> 133.3333333 | H42: 1 | I42: =IFERROR(F16/F15,0) -> 0.5 | J42: =_xlfn.IFS(I42=0,0,(2/3)*F15*((1+I42+I42^2)/(1+I42)),(2/3)*F15*((1+I42+I42^2)/(1+I42))) -> 77.77777778 | K42: =_xlfn.IFS(I42=0,0,(2*F26)/6*(1+2*I42)/(1+I42),(2*F26)/6*(1+2*I42)/(1+I42)) -> 133.3333333 | L42: =IFERROR(K42/F26*F21,0) -> 11.11111111 | M42: =_xlfn.IFS(K42=0,0,K42,K42) -> 133.3333333 | N42: =_xlfn.IFS(L42=0,0,L42,L42) -> 11.11111111 | O42: =IFERROR(_xlfn.IFS(IFERROR(F15*(F26-F25)+((F16-F15)/2)*(F26-F25),0)<0,0),IFERROR(F15*(F26-F25)+((F16-F15)/2)*(F26-F25),0)) -> 22500
C43: Vzdálenost náběžné hrany | F43: =_xlfn.IFS(F5="elipsa","viz. Obr.1",F5="obdélník",0,(N42*F33+N43*F34+N44*F35+N45*F36)/(F33+F34+F35+F36),(N42*F33+N43*F34+N44*F35+N45*F36)/(F33+F34+F35+F36)) -> 11.11111111 | H43: 2 | I43: =IFERROR(F17/F16,0) -> 0 | J43: =_xlfn.IFS(I43=0,0,(2/3)*F16*((1+I43+I43^2)/(1+I43)),(2/3)*F16*((1+I43+I43^2)/(1+I43))) -> 0 | K43: =_xlfn.IFS(I43=0,0,(2*F27-2*F26)/6*(1+2*I43)/(1+I43),(2*F27-2*F26)/6*(1+2*I43)/(1+I43)) -> 0 | L43: =IFERROR(K43/(F27-F26)*(F22-F21),0) -> 0 | M43: =_xlfn.IFS(K43=0,0,K43+F26,K43+F26) -> 0 | N43: =_xlfn.IFS(L43=0,0,L43+F21,L43+F21) -> 0 | O43: =IFERROR(_xlfn.IFS(IFERROR(F16*(F27-F26)+((F17-F16)/2)*(F27-F26),0)<0,0),IFERROR(F16*(F27-F26)+((F17-F16)/2)*(F27-F26),0)) -> 0
H44: 3 | I44: =IFERROR(F18/F17,0) -> 0 | J44: =_xlfn.IFS(I44=0,0,(2/3)*F17*((1+I44+I44^2)/(1+I44)),(2/3)*F17*((1+I44+I44^2)/(1+I44))) -> 0 | K44: =_xlfn.IFS(I44=0,0,(2*F28-2*F27)/6*(1+2*I44)/(1+I44),(2*F28-2*F27)/6*(1+2*I44)/(1+I44)) -> 0 | L44: =IFERROR(K44/(F28-F27)*(F23-F22),0) -> 0 | M44: =_xlfn.IFS(K44=0,0,K44+F27,K44+F27) -> 0 | N44: =_xlfn.IFS(L44=0,0,L44+F22,L44+F22) -> 0 | O44: =IFERROR(_xlfn.IFS(IFERROR(F17*(F28-F27)+((F18-F17)/2)*(F28-F27),0)<0,0),IFERROR(F17*(F28-F27)+((F18-F17)/2)*(F28-F27),0)) -> 0
C45: Zobrazit mezivýpočty? (zadejte "ano") | F45: ano | H45: 4 | I45: =IFERROR(F19/F18,0) -> 0 | J45: =_xlfn.IFS(I45=0,0,(2/3)*F18*((1+I45+I45^2)/(1+I45)),(2/3)*F18*((1+I45+I45^2)/(1+I45))) -> 0 | K45: =_xlfn.IFS(I45=0,0,(2*F29-2*F28)/6*(1+2*I45)/(1+I45),(2*F29-2*F28)/6*(1+2*I45)/(1+I45)) -> 0 | L45: =IFERROR(K45/(F29-F28)*(F24-F23),0) -> 0 | M45: =_xlfn.IFS(K45=0,0,K45+F28,K45+F28) -> 0 | N45: =_xlfn.IFS(L45=0,0,L45+F23,L45+F23) -> 0 | O45: =IFERROR(_xlfn.IFS(IFERROR(F18*(F29-F28)+((F19-F18)/2)*(F29-F28),0)<0,0),IFERROR(F18*(F29-F28)+((F19-F18)/2)*(F29-F28),0)) -> 0
C46: (nezobrazuje pro elipsu)

Sheet Obecná metoda
B2: PROGRAM PRO STANOVENÍ STŘEDNÍ AERODYNAMICKÉ TĚTIVY KŘÍDLA OBECNÉHO PŮDORYSU
C5: SOUŘADNICE KŘÍDLA | G5: PLOŠNÉ ROZDĚLENÍ | J5: MEZIVÝPOČET
C6: z | D6: x1 | E6: x2 | G6: z | H6: x=x1-x2 | J6: Hloubka b(x) | K6: chyba
C7: 0 | D7: 0 | E7: 100 | G7: =IF(COUNT(C7)=1,C7,#N/A) -> 0 | H7: =IF(COUNT(D7:E7)=2,ABS(D7-E7),#N/A) -> 100 | J7: =3.469446951954E-18*G7^2 - 0.166666666666669*G7 + 100 -> 100 | K7: =IFERROR(ABS((H7-J7)/J7),"") -> 0 | M7: KONTROLA POUŽITÉ REGRESE | S7: 0,000000000000000003469446951954*G7^2 - 0,166666666666669000000000000000*G7 + 100,000000000000000000000000000000
C8: 150 | D8: 12.5 | E8: 87.5 | G8: =IF(COUNT(C8)=1,C8,#N/A) -> 150 | H8: =IF(COUNT(D8:E8)=2,ABS(D8-E8),#N/A) -> 75 | J8: =3.469446951954E-18*G8^2 - 0.166666666666669*G8 + 100 -> 75 | K8: =IFERROR(ABS((H8-J8)/J8),"") -> 3.600083195e-15
C9: 300 | D9: 25 | E9: 75 | G9: 300 | H9: 50 | J9: 50 | K9: 7.673861546e-15 | M9: Do bílého pole zadejte maximální procentuální chybu regrese, kterou jste ochotni připustit.
M12: Tolerovaná hodnota chyby | O12: 0.001
M13: Maximální dosažená chyba | O13: =MAX(K7:K2007) -> 7.673861546e-15
M15: =_xlfn.IFS(O13<O12,"Použili jste vhodnou regresi, výpočet dosahuje maximálně vámi tolerovanou chybu.",O13>O12,"Nepřesný výsledek. Změňte řád polynomu regrese nebo vytvořte hustší síť souřadnic definujících profil křídla.",O13=O12,"Použili jste vhodnou regresi, výpočet dosahuje maximálně vámi tolerovanou chybu.") -> Použili jste vhodnou regresi, výpočet dosahuje maximálně vámi tolerovanou chybu.
M20: VÝPOČET STŘEDNÍ AERODYNAMICKÉ HLOUBKY bSAT
O26: =3.469446951954E-18*Z1^2 - 0.166666666666669*Z1 + 100 -> 100 | S26: 0,000000000000000003469446951954*z1^2 - 0,166666666666669000000000000000*z1 + 100,000000000000000000000000000000
O28: =0.0833333333333335*Z1 - 1.4210854715202E-14 -> -1.421085472e-14 | S28: 0,083333333333333500000000000000*z1 - 0,000000000000014210854715202000
S29: 0,083333333333333500000000000000*G7 - 0,000000000000014210854715202000
L30: NEMÁTE K DISPOZICI FUNKCI QADF(), PŘEJDĚTE NA LIST "INTEGRACE".
M32: Horní mez integrálů (= polovině rozpětí) | O32: =MAX(C7:C121) -> 300
M33: Plocha křídla (získaná integrací b(z)) | O33: =_xll.QUADF(O26,Z1,0,O32) -> 
M35: Střední aerodynamická hloubka | O35: =IFERROR(2/O33*O41/2, "list Integrace") -> list Integrace
M36: Poloha SAT na rozpětí | O36: =IFERROR(2/O33*O42/2,"list Integrace") -> list Integrace
M37: Vzdálenost náběžné hrany | O37: =IFERROR(2/O33*O43/2,"list Integrace") -> list Integrace
M39: Zobrazit mezivýpočty? (vepište "ano") | O39: ano
M41: Integrál z b(z)^2 | O41: =QUADF(O26^2,Z1,0,O32) -> 
M42: Integrál z b(z)*z | O42: =_xll.QUADF(O26*Z1,Z1,0,O32) -> 
M43: Integrál z b(z)*x(z) | O43: =_xll.QUADF(O26*O28,Z1,0,O32) -> 
G72: =IF(COUNT(C72)=1,C72,#N/A) ->  | H72: =IF(COUNT(D72:E72)=2,ABS(D72-E72),#N/A) -> 
K73: =IFERROR(ABS((H73-J73)/J73),"") -> 
G136: =IF(COUNT(C136)=1,C136,#N/A) ->  | H136: =IF(COUNT(D136:E136)=2,ABS(D136-E136),#N/A) -> 
K137: =IFERROR(ABS((H137-J137)/J137),"") -> 
G200: =IF(COUNT(C200)=1,C200,#N/A) ->  | H200: =IF(COUNT(D200:E200)=2,ABS(D200-E200),#N/A) -> 
K201: =IFERROR(ABS((H201-J201)/J201),"") -> 
G264: =IF(COUNT(C264)=1,C264,#N/A) ->  | H264: =IF(COUNT(D264:E264)=2,ABS(D264-E264),#N/A) -> 
K265: =IFERROR(ABS((H265-J265)/J265),"") -> 
G328: =IF(COUNT(C328)=1,C328,#N/A) ->  | H328: =IF(COUNT(D328:E328)=2,ABS(D328-E328),#N/A) -> 
K329: =IFERROR(ABS((H329-J329)/J329),"") -> 
G392: =IF(COUNT(C392)=1,C392,#N/A) ->  | H392: =IF(COUNT(D392:E392)=2,ABS(D392-E392),#N/A) -> 
K393: =IFERROR(ABS((H393-J393)/J393),"") -> 
G456: =IF(COUNT(C456)=1,C456,#N/A) ->  | H456: =IF(COUNT(D456:E456)=2,ABS(D456-E456),#N/A) -> 
K457: =IFERROR(ABS((H457-J457)/J457),"") -> 
G520: =IF(COUNT(C520)=1,C520,#N/A) ->  | H520: =IF(COUNT(D520:E520)=2,ABS(D520-E520),#N/A) -> 
K521: =IFERROR(ABS((H521-J521)/J521),"") -> 
G584: =IF(COUNT(C584)=1,C584,#N/A) ->  | H584: =IF(COUNT(D584:E584)=2,ABS(D584-E584),#N/A) -> 
K585: =IFERROR(ABS((H585-J585)/J585),"") -> 
G648: =IF(COUNT(C648)=1,C648,#N/A) ->  | H648: =IF(COUNT(D648:E648)=2,ABS(D648-E648),#N/A) -> 
K649: =IFERROR(ABS((H649-J649)/J649),"") -> 
G712: =IF(COUNT(C712)=1,C712,#N/A) ->  | H712: =IF(COUNT(D712:E712)=2,ABS(D712-E712),#N/A) -> 
K713: =IFERROR(ABS((H713-J713)/J713),"") -> 
G776: =IF(COUNT(C776)=1,C776,#N/A) ->  | H776: =IF(COUNT(D776:E776)=2,ABS(D776-E776),#N/A) -> 
K777: =IFERROR(ABS((H777-J777)/J777),"") -> 
G840: =IF(COUNT(C840)=1,C840,#N/A) ->  | H840: =IF(COUNT(D840:E840)=2,ABS(D840-E840),#N/A) -> 
K841: =IFERROR(ABS((H841-J841)/J841),"") -> 
G904: =IF(COUNT(C904)=1,C904,#N/A) ->  | H904: =IF(COUNT(D904:E904)=2,ABS(D904-E904),#N/A) -> 
K905: =IFERROR(ABS((H905-J905)/J905),"") -> 
G968: =IF(COUNT(C968)=1,C968,#N/A) ->  | H968: =IF(COUNT(D968:E968)=2,ABS(D968-E968),#N/A) -> 
K969: =IFERROR(ABS((H969-J969)/J969),"") -> 
G1032: =IF(COUNT(C1032)=1,C1032,#N/A) ->  | H1032: =IF(COUNT(D1032:E1032)=2,ABS(D1032-E1032),#N/A) -> 
K1033: =IFERROR(ABS((H1033-J1033)/J1033),"") -> 
G1096: =IF(COUNT(C1096)=1,C1096,#N/A) ->  | H1096: =IF(COUNT(D1096:E1096)=2,ABS(D1096-E1096),#N/A) -> 
K1097: =IFERROR(ABS((H1097-J1097)/J1097),"") -> 
G1160: =IF(COUNT(C1160)=1,C1160,#N/A) ->  | H1160: =IF(COUNT(D1160:E1160)=2,ABS(D1160-E1160),#N/A) -> 
K1161: =IFERROR(ABS((H1161-J1161)/J1161),"") -> 
G1224: =IF(COUNT(C1224)=1,C1224,#N/A) ->  | H1224: =IF(COUNT(D1224:E1224)=2,ABS(D1224-E1224),#N/A) -> 
K1225: =IFERROR(ABS((H1225-J1225)/J1225),"") -> 
G1288: =IF(COUNT(C1288)=1,C1288,#N/A) ->  | H1288: =IF(COUNT(D1288:E1288)=2,ABS(D1288-E1288),#N/A) -> 
K1289: =IFERROR(ABS((H1289-J1289)/J1289),"") -> 
G1352: =IF(COUNT(C1352)=1,C1352,#N/A) ->  | H1352: =IF(COUNT(D1352:E1352)=2,ABS(D1352-E1352),#N/A) -> 
K1353: =IFERROR(ABS((H1353-J1353)/J1353),"") -> 
G1416: =IF(COUNT(C1416)=1,C1416,#N/A) ->  | H1416: =IF(COUNT(D1416:E1416)=2,ABS(D1416-E1416),#N/A) -> 
K1417: =IFERROR(ABS((H1417-J1417)/J1417),"") -> 
G1480: =IF(COUNT(C1480)=1,C1480,#N/A) ->  | H1480: =IF(COUNT(D1480:E1480)=2,ABS(D1480-E1480),#N/A) -> 
K1481: =IFERROR(ABS((H1481-J1481)/J1481),"") -> 
G1544: =IF(COUNT(C1544)=1,C1544,#N/A) ->  | H1544: =IF(COUNT(D1544:E1544)=2,ABS(D1544-E1544),#N/A) -> 
K1545: =IFERROR(ABS((H1545-J1545)/J1545),"") -> 
G1608: =IF(COUNT(C1608)=1,C1608,#N/A) ->  | H1608: =IF(COUNT(D1608:E1608)=2,ABS(D1608-E1608),#N/A) -> 
K1609: =IFERROR(ABS((H1609-J1609)/J1609),"") -> 
G1672: =IF(COUNT(C1672)=1,C1672,#N/A) ->  | H1672: =IF(COUNT(D1672:E1672)=2,ABS(D1672-E1672),#N/A) -> 
K1673: =IFERROR(ABS((H1673-J1673)/J1673),"") -> 
G1736: =IF(COUNT(C1736)=1,C1736,#N/A) ->  | H1736: =IF(COUNT(D1736:E1736)=2,ABS(D1736-E1736),#N/A) -> 
K1737: =IFERROR(ABS((H1737-J1737)/J1737),"") -> 
G1800: =IF(COUNT(C1800)=1,C1800,#N/A) ->  | H1800: =IF(COUNT(D1800:E1800)=2,ABS(D1800-E1800),#N/A) -> 
K1801: =IFERROR(ABS((H1801-J1801)/J1801),"") -> 
G1864: =IF(COUNT(C1864)=1,C1864,#N/A) ->  | H1864: =IF(COUNT(D1864:E1864)=2,ABS(D1864-E1864),#N/A) -> 
K1865: =IFERROR(ABS((H1865-J1865)/J1865),"") -> 
G1928: =IF(COUNT(C1928)=1,C1928,#N/A) ->  | H1928: =IF(COUNT(D1928:E1928)=2,ABS(D1928-E1928),#N/A) -> 
K1929: =IFERROR(ABS((H1929-J1929)/J1929),"") -> 
G1992: =IF(COUNT(C1992)=1,C1992,#N/A) ->  | H1992: =IF(COUNT(D1992:E1992)=2,ABS(D1992-E1992),#N/A) -> 
K1993: =IFERROR(ABS((H1993-J1993)/J1993),"") -> 

Sheet Integrace
B2: ALTERNATIVNÍ VÝPOČET INTEGRÁLŮ PRO ZÍSKÁNÍ STŘEDNÍ AERODYNAMICKÉ TĚTIVY
G4: dz | H4: b(z) | I4: b(z)^2 | J4: b(z)*z | K4: x(z) | L4: b(z)*x(z) | M4: nosná plocha | N4: bsat' | O4: zsat' | P4: xsat'
G5: 10 | R5: VÝSLEDNÉ HODNOTY
G7: 0 | H7: =3.469446951954E-18*G7^2 - 0.166666666666669*G7 + 100 -> 100 | I7: =H7^2 -> 10000 | J7: =H7*G7 -> 0 | K7: =0.0833333333333335*G7 - 1.4210854715202E-14 -> -1.421085472e-14 | L7: =H7*K7 -> -1.421085472e-12 | M7: 0 | N7: 0 | O7: 0 | P7: 0 | R7: Střední aerodynamická hloubka | T7: =2/MAX(M7:M2007)*(MAX(N7:N2007)-N7)/2 -> 77.78395062
G8: =G7+G$5 -> 10 | H8: =3.469446951954E-18*G8^2 - 0.166666666666669*G8 + 100 -> 98.33333333 | I8: =H8^2 -> 9669.444444 | J8: =H8*G8 -> 983.3333333 | K8: =0.0833333333333335*G8 - 1.4210854715202E-14 -> 0.8333333333 | L8: =H8*K8 -> 81.94444444 | M8: =M7+0.5*(H8+H7)*G$5 -> 991.6666667 | N8: =N7+0.5*(I8+I7)*G$5 -> 98347.22222 | O8: =O7+0.5*(J8+J7)*G$5 -> 4916.666667 | P8: =P7+0.5*(L8+L7)*G$5 -> 409.7222222 | R8: Poloha SAT na rozpětí | T8: =2/MAX(M7:M2007)*(MAX(O7:O2007)-O7)/2 -> 133.2962963
G9: =G8+G$5 -> 20 | H9: 96.66666667 | I9: 9344.444444 | J9: 1933.333333 | K9: 1.666666667 | L9: 161.1111111 | M9: =M8+0.5*(H9+H8)*G$5 -> 1966.666667 | N9: =N8+0.5*(I9+I8)*G$5 -> 193416.6667 | O9: =O8+0.5*(J9+J8)*G$5 -> 19500 | P9: =P8+0.5*(L9+L8)*G$5 -> 1625 | R9: Vzdálenost náběžné hrany | T9: =2/MAX(M7:M2007)*(MAX(P7:P2007)-P7)/2 -> 11.10802469
G10: 30 | H10: 95 | I10: 9025 | J10: 2850 | K10: 2.5 | L10: 237.5 | M10: 2925 | N10: 285263.8889 | O10: 43416.66667 | P10: 3618.055556
G11: 40 | H11: 93.33333333 | I11: 8711.111111 | J11: 3733.333333 | K11: 3.333333333 | L11: 311.1111111 | M11: 3866.666667 | N11: 373944.4444 | O11: 76333.33333 | P11: 6361.111111
G12: 50 | H12: 91.66666667 | I12: 8402.777778 | J12: 4583.333333 | K12: 4.166666667 | L12: 381.9444444 | M12: 4791.666667 | N12: 459513.8889 | O12: 117916.6667 | P12: 9826.388889
G13: 60 | H13: 90 | I13: 8100 | J13: 5400 | K13: 5 | L13: 450 | M13: 5700 | N13: 542027.7778 | O13: 167833.3333 | P13: 13986.11111
G14: 70 | H14: 88.33333333 | I14: 7802.777778 | J14: 6183.333333 | K14: 5.833333333 | L14: 515.2777778 | M14: 6591.666667 | N14: 621541.6667 | O14: 225750 | P14: 18812.5 | AE14: F(z)
G15: 80 | H15: 86.66666667 | I15: 7511.111111 | J15: 6933.333333 | K15: 6.666666667 | L15: 577.7777778 | M15: 7466.666667 | N15: 698111.1111 | O15: 291333.3333 | P15: 24277.77778
G16: 90 | H16: 85 | I16: 7225 | J16: 7650 | K16: 7.5 | L16: 637.5 | M16: 8325 | N16: 771791.6667 | O16: 364250 | P16: 30354.16667 | AE16: F(0)
G17: 100 | H17: 83.33333333 | I17: 6944.444444 | J17: 8333.333333 | K17: 8.333333333 | L17: 694.4444444 | M17: 9166.666667 | N17: 842638.8889 | O17: 444166.6667 | P17: 37013.88889 | AE17: F(0)+0,5*(f(0)+F(0))*k
G18: 110 | H18: 81.66666667 | I18: 6669.444444 | J18: 8983.333333 | K18: 9.166666667 | L18: 748.6111111 | M18: 9991.666667 | N18: 910708.3333 | O18: 530750 | P18: 44229.16667
G19: 120 | H19: 80 | I19: 6400 | J19: 9600 | K19: 10 | L19: 800 | M19: 10800 | N19: 976055.5556 | O19: 623666.6667 | P19: 51972.22222
G20: 130 | H20: 78.33333333 | I20: 6136.111111 | J20: 10183.33333 | K20: 10.83333333 | L20: 848.6111111 | M20: 11591.66667 | N20: 1038736.111 | O20: 722583.3333 | P20: 60215.27778
G21: 140 | H21: 76.66666667 | I21: 5877.777778 | J21: 10733.33333 | K21: 11.66666667 | L21: 894.4444444 | M21: 12366.66667 | N21: 1098805.556 | O21: 827166.6667 | P21: 68930.55556
G22: 150 | H22: 75 | I22: 5625 | J22: 11250 | K22: 12.5 | L22: 937.5 | M22: 13125 | N22: 1156319.444 | O22: 937083.3333 | P22: 78090.27778
G23: 160 | H23: 73.33333333 | I23: 5377.777778 | J23: 11733.33333 | K23: 13.33333333 | L23: 977.7777778 | M23: 13866.66667 | N23: 1211333.333 | O23: 1052000 | P23: 87666.66667
G24: 170 | H24: 71.66666667 | I24: 5136.111111 | J24: 12183.33333 | K24: 14.16666667 | L24: 1015.277778 | M24: 14591.66667 | N24: 1263902.778 | O24: 1171583.333 | P24: 97631.94444
G25: 180 | H25: 70 | I25: 4900 | J25: 12600 | K25: 15 | L25: 1050 | M25: 15300 | N25: 1314083.333 | O25: 1295500 | P25: 107958.3333
G26: 190 | H26: 68.33333333 | I26: 4669.444444 | J26: 12983.33333 | K26: 15.83333333 | L26: 1081.944444 | M26: 15991.66667 | N26: 1361930.556 | O26: 1423416.667 | P26: 118618.0556
G27: 200 | H27: 66.66666667 | I27: 4444.444444 | J27: 13333.33333 | K27: 16.66666667 | L27: 1111.111111 | M27: 16666.66667 | N27: 1407500 | O27: 1555000 | P27: 129583.3333
G28: 210 | H28: 65 | I28: 4225 | J28: 13650 | K28: 17.5 | L28: 1137.5 | M28: 17325 | N28: 1450847.222 | O28: 1689916.667 | P28: 140826.3889
G29: 220 | H29: 63.33333333 | I29: 4011.111111 | J29: 13933.33333 | K29: 18.33333333 | L29: 1161.111111 | M29: 17966.66667 | N29: 1492027.778 | O29: 1827833.333 | P29: 152319.4444
G30: 230 | H30: 61.66666667 | I30: 3802.777778 | J30: 14183.33333 | K30: 19.16666667 | L30: 1181.944444 | M30: 18591.66667 | N30: 1531097.222 | O30: 1968416.667 | P30: 164034.7222
G31: 240 | H31: 60 | I31: 3600 | J31: 14400 | K31: 20 | L31: 1200 | M31: 19200 | N31: 1568111.111 | O31: 2111333.333 | P31: 175944.4444
G32: 250 | H32: 58.33333333 | I32: 3402.777778 | J32: 14583.33333 | K32: 20.83333333 | L32: 1215.277778 | M32: 19791.66667 | N32: 1603125 | O32: 2256250 | P32: 188020.8333
G33: 260 | H33: 56.66666667 | I33: 3211.111111 | J33: 14733.33333 | K33: 21.66666667 | L33: 1227.777778 | M33: 20366.66667 | N33: 1636194.444 | O33: 2402833.333 | P33: 200236.1111
G34: 270 | H34: 55 | I34: 3025 | J34: 14850 | K34: 22.5 | L34: 1237.5 | M34: 20925 | N34: 1667375 | O34: 2550750 | P34: 212562.5
G35: 280 | H35: 53.33333333 | I35: 2844.444444 | J35: 14933.33333 | K35: 23.33333333 | L35: 1244.444444 | M35: 21466.66667 | N35: 1696722.222 | O35: 2699666.667 | P35: 224972.2222
G36: 290 | H36: 51.66666667 | I36: 2669.444444 | J36: 14983.33333 | K36: 24.16666667 | L36: 1248.611111 | M36: 21991.66667 | N36: 1724291.667 | O36: 2849250 | P36: 237437.5
G37: 300 | H37: 50 | I37: 2500 | J37: 15000 | K37: 25 | L37: 1250 | M37: 22500 | N37: 1750138.889 | O37: 2999166.667 | P37: 249930.5556
